[Event "BAN-chT Golden Jubilee 2021-22"]
[Site "Dhaka"]
[Date "2022.03.18"]
[Round "9.8"]
[White "Chatterjee, Debaraj"]
[Black "Ahmed, Shafiq"]
[Result "1/2-1/2"]
[ECO "D11"]
[WhiteElo "2196"]
[BlackElo "2106"]
[Annotator "ChessBase"]
[PlyCount "83"]
[EventDate "2022.03.10"]
[EventType "team-tourn"]
[EventCountry "BAN"]
[SourceTitle "playchess.com"]
[Source "ChessBase"]
[SourceQuality "1"]
[TimeControl "40/5400+30:1800+30"]

1. d4 {[%emt 0:02:20]} d5 {[%emt 0:00:44]} 2. c4 {[%emt 0:00:19]} c6 {[%emt 0:00:04]} 3. Nf3 {[%emt 0:00:07]} Nf6 {[%emt 0:01:30]} 4. e3 {[%emt 0:00:12]} Bg4 {[%emt 0:00:44]} 5. Qb3 {[%emt 0:02:38]} Qb6 {[%emt 0:00:38]} 6. Ne5 {[%emt 0:01:57]} e6 {[%emt 0:07:24]} 7. Nxg4 {[%emt 0:06:22]} Nxg4 {[%emt 0:00:10]} 8. Nc3 {[%emt 0:00:26]} f5 {[%emt 0:11:40]} 9. Qc2 {[%emt 0:02:03]} g6 {[%emt 0:00:40]} 10. Bd2 {[%emt 0:08:14]} Nd7 {[%emt 0:01:27]} 11. Bd3 {[%emt 0:07:57]} Ngf6 {[%emt 0:10:59]} 12. O-O-O {[%emt 0:09:16]} Be7 {[%emt 0:03:45]} 13. Kb1 {[%emt 0:00:16]} a6 {[%emt 0:10:14]} 14. f3 {[%emt 0:10:08]} Qa7 {[%emt 0:05:06]} 15. h4 {[%emt 0:04:14]} b5 {[%emt 0:01:24]} 16. cxd5 {[%emt 0:00:37]} cxd5 {[%emt 0:03:29]} 17. Ne2 {[%emt 0:03:47]} Kf7 {[%emt 0:01:13]} 18. Rc1 {[%emt 0:02:31]} Nb6 {[%emt 0:02:02]} 19. Qc7 {[%emt 0:12:20]} Nc4 {[%emt 0:02:11]} 20. Qxa7 {[%emt 0:00:29]} Rxa7 {[%emt 0:00:27]} 21. Rc2 {[%emt 0:02:06]} Rc7 {[%emt 0:07:02]} 22. Bc1 {[%emt 0:02:14]} Rhc8 {[%emt 0:00:19]} 23. Nf4 {[%emt 0:05:38]} Bd6 {[%emt 0:03:11]} 24. g3 {[%emt 0:03:11]} h6 {[%emt 0:12:21]} 25. Rhh2 {[%emt 0:05:08]} Nb6 {[%emt 0:02:37]} 26. Rxc7+ {[%emt 0:01:03]} Rxc7 {[%emt 0:00:03]} 27. b3 {[%emt 0:00:40]} g5 {[%emt 0:06:55]} 28. hxg5 {[%emt 0:00:09]} hxg5 {[%emt 0:00:57]} 29. Nh5 {[%emt 0:02:28]} Nxh5 {[%emt 0:02:42]} 30. Rxh5 {[%emt 0:00:13]} Bxg3 {[%emt 0:00:27]} 31. Rxg5 {[%emt 0:01:31]} Bh4 {[%emt 0:01:02]} 32. Rh5 {[%emt 0:00:24]} Bf6 {[%emt 0:00:08]} 33. Bd2 {[%emt 0:02:03]} Kg6 {[%emt 0:00:42]} 34. Rh1 {[%emt 0:00:33]} Rc6 {[%emt 0:00:40]} 35. Ba5 {[%emt 0:01:27]} Nc8 {[%emt 0:00:25]} 36. Bd2 {[%emt 0:02:27]} Nd6 {[%emt 0:00:17]} 37. Rh2 {[%emt 0:00:39]} Kg7 {[%emt 0:00:46]} 38. Re2 {[%emt 0:00:14]} Kf7 {[%emt 0:00:43]} 39. Re1 {[%emt 0:00:50]} Kg7 {[%emt 0:00:29]} 40. Rc1 {[%emt 0:00:00]} Rxc1+ {[%emt 0:00:00]} 41. Kxc1 {[%emt 0:00:46]} f4 {[%emt 0:01:31]} 42. e4 {[%emt 0:11:42]} 1/2-1/2

[Event "BAN-chT Golden Jubilee 2021-22"]
[Site "Dhaka"]
[Date "2022.03.18"]
[Round "9.9"]
[White "Abu Sufian, Shakil"]
[Black "Uddin, Saif"]
[Result "1/2-1/2"]
[ECO "C50"]
[WhiteElo "2232"]
[BlackElo "1943"]
[Annotator "ChessBase"]
[PlyCount "91"]
[EventDate "2022.03.10"]
[EventType "team-tourn"]
[EventCountry "BAN"]
[SourceTitle "playchess.com"]
[Source "ChessBase"]
[SourceQuality "1"]
[TimeControl "40/5400+30:1800+30"]

1. e4 {[%emt 0:00:04]} e5 {[%emt 0:08:21]} 2. Nf3 {[%emt 0:00:11]} Nc6 {[%emt 0:00:07]} 3. Bc4 {[%emt 0:00:22]} Be7 {[%emt 0:00:51]} 4. d4 {[%emt 0:00:08]} exd4 {[%emt 0:00:22]} 5. Nxd4 {[%emt 0:00:07]} d6 {[%emt 0:00:26]} 6. O-O {[%emt 0:02:13]} Nf6 {[%emt 0:00:25]} 7. Nc3 {[%emt 0:00:56]} O-O {[%emt 0:00:33]} 8. Nxc6 {[%emt 0:03:46]} bxc6 {[%emt 0:00:39]} 9. Re1 {[%emt 0:07:12]} Nd7 {[%emt 0:06:26]} 10. f4 {[%emt 0:14:48]} Bf6 {[%emt 0:04:04]} 11. Be3 {[%emt 0:05:47]} a5 {[%emt 0:01:34]} 12. Bd4 {[%emt 0:00:52]} Nb6 {[%emt 0:02:36]} 13. Bf1 {[%emt 0:02:45]} c5 {[%emt 0:03:15]} 14. Bxf6 {[%emt 0:07:08]} Qxf6 {[%emt 0:00:30]} 15. g3 {[%emt 0:00:04]} Rb8 {[%emt 0:03:59]} 16. Qd2 {[%emt 0:07:39]} a4 {[%emt 0:07:45]} 17. b3 {[%emt 0:02:31]} axb3 {[%emt 0:04:27]} 18. cxb3 {[%emt 0:03:15]} Be6 {[%emt 0:01:29]} 19. e5 {[%emt 0:08:28]} dxe5 {[%emt 0:05:28]} 20. fxe5 {[%emt 0:03:44]} Qe7 {[%emt 0:00:20]} 21. Ne4 {[%emt 0:08:18]} Rfd8 {[%emt 0:01:08]} 22. Qc3 {[%emt 0:00:35]} c4 {[%emt 0:05:47]} 23. bxc4 {[%emt 0:00:50]} Na4 {[%emt 0:00:34]} 24. Qc2 {[%emt 0:01:58]} Nc5 {[%emt 0:02:44]} 25. Nxc5 {[%emt 0:00:44]} Qxc5+ {[%emt 0:00:01]} 26. Qf2 {[%emt 0:00:10]} Qa5 {[%emt 0:01:18]} 27. c5 {[%emt 0:07:01]} Rd2 {[%emt 0:03:52]} 28. Re2 {[%emt 0:00:14]} Rxe2 {[%emt 0:01:33]} 29. Bxe2 {[%emt 0:00:05]} Qc3 {[%emt 0:02:57]} 30. Rd1 {[%emt 0:00:38]} Qxe5 {[%emt 0:01:28]} 31. Qd4 {[%emt 0:00:26]} Qxd4+ 32. Rxd4 {[%emt 0:00:01]} Kf8 {[%emt 0:01:36]} 33. a4 {[%emt 0:00:48]} Rb1+ {[%emt 0:03:31]} 34. Kf2 {[%emt 0:02:27]} Ra1 {[%emt 0:06:49]} 35. h4 {[%emt 0:00:16]} Ke7 {[%emt 0:00:09]} 36. Bb5 {[%emt 0:00:37]} Rc1 {[%emt 0:03:24]} 37. c6 {[%emt 0:00:20]} Ra1 {[%emt 0:01:14]} 38. Ke3 {[%emt 0:05:06]} h6 {[%emt 0:01:05]} 39. Kd2 {[%emt 0:02:16]} g5 {[%emt 0:01:10]} 40. hxg5 {[%emt 0:00:00]} hxg5 {[%emt 0:00:00]} 41. g4 {[%emt 0:00:51]} Ra3 {[%emt 0:08:39]} 42. Kc2 {[%emt 0:00:23]} f6 {[%emt 0:09:02]} 43. Kb2 {[%emt 0:01:43]} Rb3+ {[%emt 0:00:24]} 44. Kc2 {[%emt 0:00:54]} Ra3 {[%emt 0:00:32]} 45. Kb2 {[%emt 0:00:07]} Rb3+ {[%emt 0:00:11]} 46. Kc2 {[%emt 0:00:11]} 1/2-1/2

[Event "BAN-chT Golden Jubilee 2021-22"]
[Site "Dhaka"]
[Date "2022.03.18"]
[Round "9.10"]
[White "Mohammed Abdul, Malek"]
[Black "Zia, Tahsin Tajwar"]
[Result "1-0"]
[ECO "E06"]
[WhiteElo "2148"]
[BlackElo "2283"]
[Annotator "ChessBase"]
[PlyCount "81"]
[EventDate "2022.03.10"]
[EventType "team-tourn"]
[EventCountry "BAN"]
[SourceTitle "playchess.com"]
[Source "ChessBase"]
[SourceQuality "1"]
[TimeControl "40/5400+30:1800+30"]

1. Nf3 {[%emt 0:07:10]} d5 {[%emt 0:00:17]} 2. c4 {[%emt 0:00:32]} e6 {[%emt 0:01:03]} 3. g3 {[%emt 0:02:39]} Nf6 {[%emt 0:01:33]} 4. Bg2 {[%emt 0:01:28]} Be7 {[%emt 0:01:15]} 5. d4 {[%emt 0:00:46]} O-O {[%emt 0:00:26]} 6. O-O {[%emt 0:01:37]} a5 {[%emt 0:00:25]} 7. c5 {[%emt 0:03:03]} b6 {[%emt 0:02:12]} 8. cxb6 {[%emt 0:00:07]} c5 {[%emt 0:06:00]} 9. dxc5 {[%emt 0:01:38]} Bxc5 {[%emt 0:00:12]} 10. Nc3 {[%emt 0:00:12]} Bxb6 {[%emt 0:01:33]} 11. Bf4 {[%emt 0:04:50]} Nc6 {[%emt 0:04:51]} 12. Na4 {[%emt 0:02:53]} Ba7 {[%emt 0:11:06]} 13. Rc1 {[%emt 0:01:39]} Bd7 {[%emt 0:01:16]} 14. Bd6 {[%emt 0:24:04]} Re8 {[%emt 0:01:45]} 15. Qb3 {[%emt 0:08:13]} Ne4 {[%emt 0:09:03]} 16. Bc5 {[%emt 0:10:24]} Rb8 {[%emt 0:02:43]} 17. Qa3 {[%emt 0:01:34]} Nxc5 {[%emt 0:09:33]} 18. Nxc5 {[%emt 0:00:33]} Bxc5 {[%emt 0:00:45]} 19. Rxc5 {[%emt 0:01:07]} Qb6 {[%emt 0:00:22]} 20. b3 {[%emt 0:02:37]} Qb4 {[%emt 0:01:31]} 21. Qxb4 {[%emt 0:03:02]} axb4 {[%emt 0:00:13]} 22. Rfc1 {[%emt 0:00:29]} Rb6 {[%emt 0:00:09]} 23. e3 {[%emt 0:01:28]} Ra8 {[%emt 0:03:12]} 24. Bf1 {[%emt 0:04:10]} Rab8 {[%emt 0:03:53]} 25. Bd3 {[%emt 0:04:49]} f5 {[%emt 0:11:04]} 26. h4 {[%emt 0:02:00]} Kf8 {[%emt 0:03:13]} 27. Nd4 {[%emt 0:03:41]} Ne5 {[%emt 0:02:23]} 28. Bxf5 {[%emt 0:00:37]} exf5 {[%emt 0:05:35]} 29. Rxd5 {[%emt 0:00:11]} Re8 {[%emt 0:00:05]} 30. Rc7 {[%emt 0:03:13]} Bc8 {[%emt 0:02:30]} 31. Rxc8 {[%emt 0:02:50]} Rxc8 {[%emt 0:00:34]} 32. Rxe5 {[%emt 0:00:03]} g6 {[%emt 0:01:27]} 33. Ne6+ {[%emt 0:02:08]} Kf7 {[%emt 0:02:21]} 34. Ng5+ {[%emt 0:00:06]} Kf6 {[%emt 0:01:16]} 35. Ra5 {[%emt 0:00:34]} Rc7 {[%emt 0:00:37]} 36. Kg2 {[%emt 0:00:23]} Rbb7 {[%emt 0:04:05]} 37. Ra6+ {[%emt 0:00:32]} Ke5 {[%emt 0:00:20]} 38. Ne6 {[%emt 0:01:25]} Re7 {[%emt 0:01:37]} 39. Nd8 {[%emt 0:00:16]} Ke4 {[%emt 0:04:35]} 40. Nxb7 {[%emt 0:01:27]} Rxb7 {[%emt 0:03:30]} 41. Rd6 {[%emt 0:00:00]} 1-0

[Event "BAN-chT Golden Jubilee 2021-22"]
[Site "Dhaka"]
[Date "2022.03.18"]
[Round "9.13"]
[White "Chowdhury, Sohel"]
[Black "Manon, Reja Neer"]
[Result "1-0"]
[ECO "B26"]
[WhiteElo "2046"]
[BlackElo "2209"]
[Annotator "ChessBase"]
[PlyCount "125"]
[EventDate "2022.03.10"]
[EventType "team-tourn"]
[EventCountry "BAN"]
[SourceTitle "playchess.com"]
[Source "ChessBase"]
[SourceQuality "1"]
[TimeControl "40/5400+30:1800+30"]

1. e4 {[%emt 0:00:57]} c5 {[%emt 0:00:13]} 2. Nc3 {[%emt 0:00:15]} Nc6 {[%emt 0:00:18]} 3. g3 {[%emt 0:00:15]} g6 {[%emt 0:00:06]} 4. Bg2 {[%emt 0:00:05]} Bg7 {[%emt 0:00:02]} 5. d3 {[%emt 0:00:14]} d6 {[%emt 0:00:06]} 6. Be3 {[%emt 0:02:21]} e6 {[%emt 0:00:31]} 7. Qd2 {[%emt 0:00:34]} Rb8 {[%emt 0:14:02]} 8. Nge2 {[%emt 0:01:51]} Nd4 {[%emt 0:01:36]} 9. O-O {[%emt 0:03:53]} Ne7 {[%emt 0:01:26]} 10. Nc1 {[%emt 0:04:36]} O-O {[%emt 0:05:26]} 11. Nd1 {[%emt 0:00:31]} f5 {[%emt 0:07:09]} 12. c3 {[%emt 0:01:34]} Ndc6 {[%emt 0:01:12]} 13. Bh6 {[%emt 0:00:18]} d5 {[%emt 0:16:49]} 14. Bxg7 {[%emt 0:02:18]} Kxg7 {[%emt 0:01:13]} 15. exd5 {[%emt 0:05:39]} exd5 {[%emt 0:01:20]} 16. d4 {[%emt 0:05:26]} cxd4 {[%emt 0:07:32]} 17. cxd4 {[%emt 0:00:03]} f4 {[%emt 0:00:52]} 18. Re1 {[%emt 0:22:25]} Qd6 {[%emt 0:06:55]} 19. Nb3 {[%emt 0:02:20]} b6 {[%emt 0:16:56]} 20. Nc3 {[%emt 0:02:37]} Ba6 {[%emt 0:01:15]} 21. Rad1 {[%emt 0:03:42]} Qd7 {[%emt 0:05:26]} 22. Nc1 {[%emt 0:08:51]} Rbe8 {[%emt 0:09:49]} 23. Nd3 {[%emt 0:01:39]} f3 {[%emt 0:00:52]} 24. Bh1 {[%emt 0:04:47]} Bxd3 {[%emt 0:00:48]} 25. Qxd3 {[%emt 0:00:11]} Nf5 {[%emt 0:00:33]} 26. Rxe8 {[%emt 0:01:21]} Qxe8 {[%emt 0:00:29]} 27. Bxf3 {[%emt 0:01:08]} Nfxd4 {[%emt 0:00:26]} 28. Bxd5 {[%emt 0:00:39]} Qe7 {[%emt 0:00:36]} 29. Bxc6 {[%emt 0:01:06]} Nxc6 {[%emt 0:00:01]} 30. Qd7 {[%emt 0:01:29]} Qxd7 {[%emt 0:00:01]} 31. Rxd7+ {[%emt 0:00:13]} Rf7 {[%emt 0:00:01]} 32. Rxf7+ {[%emt 0:01:38]} Kxf7 {[%emt 0:00:05]} 33. f4 {[%emt 0:00:56]} Ke6 {[%emt 0:00:46]} 34. Kf2 {[%emt 0:00:27]} Nd4 {[%emt 0:01:14]} 35. Ke3 {[%emt 0:00:58]} Nc6 {[%emt 0:00:52]} 36. Ke4 {[%emt 0:00:40]} Kd6 {[%emt 0:00:48]} 37. g4 {[%emt 0:00:43]} Ke6 {[%emt 0:00:22]} 38. f5+ {[%emt 0:02:59]} Kf6 {[%emt 0:00:37]} 39. Nd5+ {[%emt 0:00:51]} Kf7 {[%emt 0:00:16]} 40. b4 {[%emt 0:00:00]} Nd8 {[%emt 0:00:00]} 41. b5 {[%emt 0:04:30]} Nb7 {[%emt 0:01:47]} 42. Ke5 {[%emt 0:02:02]} h6 {[%emt 0:01:13]} 43. h4 {[%emt 0:02:21]} Nc5 {[%emt 0:01:20]} 44. fxg6+ {[%emt 0:01:09]} Kxg6 {[%emt 0:00:02]} 45. Ne7+ {[%emt 0:00:18]} Kf7 {[%emt 0:00:31]} 46. Nc8 {[%emt 0:01:23]} Nd3+ {[%emt 0:00:03]} 47. Kf5 {[%emt 0:05:26]} Nb4 {[%emt 0:02:11]} 48. a3 {[%emt 0:08:33]} Nc2 {[%emt 0:00:18]} 49. a4 {[%emt 0:01:01]} Ne3+ {[%emt 0:01:39]} 50. Kf4 {[%emt 0:03:55]} Nd5+ {[%emt 0:01:02]} 51. Ke5 {[%emt 0:00:09]} Nc3 {[%emt 0:00:04]} 52. Nxa7 {[%emt 0:00:39]} Nxa4 {[%emt 0:00:19]} 53. Nc8 {[%emt 0:01:19]} Nc3 {[%emt 0:02:08]} 54. Nd6+ {[%emt 0:00:48]} Kg6 {[%emt 0:02:10]} 55. Kd4 {[%emt 0:02:54]} Na4 {[%emt 0:05:14]} 56. Kd5 {[%emt 0:01:59]} Kf6 {[%emt 0:00:26]} 57. Nc4 {[%emt 0:01:56]} Nc3+ {[%emt 0:01:22]} 58. Kc6 {[%emt 0:00:14]} Ke6 {[%emt 0:00:34]} 59. Nxb6 {[%emt 0:01:31]} Nxb5 {[%emt 0:01:20]} 60. Kxb5 {[%emt 0:00:19]} Ke5 {[%emt 0:00:01]} 61. Nd7+ {[%emt 0:01:40]} Kf4 {[%emt 0:00:19]} 62. Nf6 {[%emt 0:00:05]} Kg3 {[%emt 0:00:04]} 63. g5 {[%emt 0:00:40]} 1-0

[Event "BAN-chT Golden Jubilee 2021-22"]
[Site "Dhaka"]
[Date "2022.03.18"]
[Round "9.16"]
[White "Ikramul, Haq Siam"]
[Black "Masum, Hossain"]
[Result "1/2-1/2"]
[ECO "D21"]
[WhiteElo "2075"]
[BlackElo "2003"]
[Annotator "ChessBase"]
[PlyCount "52"]
[EventDate "2022.03.10"]
[EventType "team-tourn"]
[EventCountry "BAN"]
[SourceTitle "playchess.com"]
[Source "ChessBase"]
[SourceQuality "1"]
[TimeControl "40/5400+30:1800+30"]

1. d4 {[%emt 0:00:04]} e6 {[%emt 0:00:01]} 2. Nf3 {[%emt 0:00:35]} d5 {[%emt 0:00:09]} 3. c4 {[%emt 0:00:36]} dxc4 {[%emt 0:00:29]} 4. Nc3 {[%emt 0:00:31]} a6 {[%emt 0:00:08]} 5. a4 {[%emt 0:00:11]} Nc6 {[%emt 0:01:51]} 6. e3 {[%emt 0:02:15]} Na5 {[%emt 0:00:25]} 7. Nd2 {[%emt 0:00:51]} Bb4 {[%emt 0:04:48]} 8. Nxc4 {[%emt 0:00:53]} c5 {[%emt 0:00:47]} 9. dxc5 {[%emt 0:17:06]} Qxd1+ {[%emt 0:01:20]} 10. Kxd1 {[%emt 0:00:30]} Nxc4 {[%emt 0:00:33]} 11. Bxc4 {[%emt 0:00:00]} Bxc5 {[%emt 0:01:12]} 12. Ke2 {[%emt 0:03:37]} Nf6 {[%emt 0:00:43]} 13. e4 {[%emt 0:01:06]} b6 {[%emt 0:09:54]} 14. Be3 {[%emt 0:36:44]} Bxe3 {[%emt 0:02:50]} 15. Kxe3 {[%emt 0:04:39]} Bb7 {[%emt 0:00:07]} 16. Rhd1 {[%emt 0:02:03]} Rc8 {[%emt 0:00:28]} 17. b3 {[%emt 0:01:31]} Ke7 {[%emt 0:01:08]} 18. f3 {[%emt 0:00:23]} Rhd8 {[%emt 0:00:12]} 19. Rxd8 {[%emt 0:07:13]} Rxd8 {[%emt 0:01:52]} 20. Rd1 {[%emt 0:00:27]} Rxd1 {[%emt 0:00:25]} 21. Nxd1 {[%emt 0:00:04]} Nd7 {[%emt 0:01:04]} 22. Nb2 {[%emt 0:02:12]} Ne5 {[%emt 0:04:04]} 23. Kd4 {[%emt 0:00:20]} Nd7 {[%emt 0:00:02]} 24. Ke3 {[%emt 0:00:07]} Ne5 {[%emt 0:00:04]} 25. Kd4 {[%emt 0:00:06]} Nd7 {[%emt 0:00:07]} 26. Ke3 {[%emt 0:00:19]} Ne5 {[%emt 1:08:47]} 1/2-1/2

[Event "BAN-chT Golden Jubilee 2021-22"]
[Site "Dhaka"]
[Date "2022.03.18"]
[Round "9.17"]
[White "Rahman, Syed Mahfuzur"]
[Black "Sadnan Hasan, Dihan"]
[Result "1-0"]
[ECO "A41"]
[WhiteElo "2099"]
[BlackElo "2152"]
[Annotator "ChessBase"]
[PlyCount "122"]
[EventDate "2022.03.10"]
[EventType "team-tourn"]
[EventCountry "BAN"]
[SourceTitle "playchess.com"]
[Source "ChessBase"]
[SourceQuality "1"]
[TimeControl "40/5400+30:1800+30"]

1. d4 {[%emt 0:04:57]} d6 {[%emt 0:00:01]} 2. c4 {[%emt 0:00:41]} g6 {[%emt 0:00:07]} 3. Nc3 {[%emt 0:00:07]} Bg7 {[%emt 0:00:05]} 4. Nf3 {[%emt 0:01:56]} e6 {[%emt 0:00:02]} 5. e4 {[%emt 0:03:30]} Ne7 {[%emt 0:00:02]} 6. Be2 {[%emt 0:04:57]} a6 {[%emt 0:00:24]} 7. O-O {[%emt 0:06:34]} Nd7 {[%emt 0:00:02]} 8. Re1 {[%emt 0:04:28]} b6 {[%emt 0:00:18]} 9. a4 {[%emt 0:01:35]} a5 {[%emt 0:01:06]} 10. Bg5 {[%emt 0:01:31]} h6 {[%emt 0:00:08]} 11. Be3 {[%emt 0:00:25]} Bb7 {[%emt 0:00:04]} 12. Qd2 {[%emt 0:02:59]} Kf8 {[%emt 0:02:03]} 13. Rad1 {[%emt 0:01:41]} Qc8 {[%emt 0:01:38]} 14. h3 {[%emt 0:03:39]} Kg8 {[%emt 0:02:57]} 15. h4 {[%emt 0:09:11]} Kh7 {[%emt 0:01:35]} 16. h5 {[%emt 0:00:18]} g5 {[%emt 0:05:22]} 17. Nh2 {[%emt 0:23:54]} Rd8 {[%emt 0:01:57]} 18. f4 {[%emt 0:00:38]} gxf4 {[%emt 0:00:46]} 19. Bxf4 {[%emt 0:00:05]} e5 {[%emt 0:00:13]} 20. dxe5 {[%emt 0:05:25]} dxe5 {[%emt 0:01:37]} 21. Bg4 {[%emt 0:02:48]} Bc6 {[%emt 0:01:53]} 22. Nd5 {[%emt 0:02:13]} Bxd5 {[%emt 0:03:10]} 23. exd5 {[%emt 0:01:56]} f5 {[%emt 0:00:05]} 24. Qc2 {[%emt 0:01:21]} Rf8 {[%emt 0:01:33]} 25. Nf3 {[%emt 0:03:47]} Kg8 {[%emt 0:03:29]} 26. Bh3 {[%emt 0:00:59]} e4 {[%emt 0:04:16]} 27. Qd2 {[%emt 0:01:09]} Rf6 {[%emt 0:01:55]} 28. d6 {[%emt 0:02:36]} cxd6 {[%emt 0:00:46]} 29. Bxd6 {[%emt 0:00:16]} Rxd6 {[%emt 0:05:02]} 30. Qxd6 {[%emt 0:00:03]} Qc5+ {[%emt 0:00:04]} 31. Kh1 {[%emt 0:01:40]} Qxd6 {[%emt 0:00:41]} 32. Rxd6 {[%emt 0:00:03]} Nc5 {[%emt 0:00:32]} 33. Nd2 {[%emt 0:08:13]} Nxa4 {[%emt 0:01:18]} 34. b3 {[%emt 0:01:22]} Nc5 {[%emt 0:00:04]} 35. Rxb6 {[%emt 0:00:10]} Bc3 {[%emt 0:00:17]} 36. Re2 {[%emt 0:00:36]} Rd8 {[%emt 0:00:09]} 37. Nf1 {[%emt 0:00:18]} Rd1 {[%emt 0:00:20]} 38. g3 {[%emt 0:00:11]} Rb1 {[%emt 0:02:22]} 39. Kg2 {[%emt 0:00:43]} a4 {[%emt 0:07:19]} 40. Ne3 {[%emt 0:00:00]} Rxb3 {[%emt 0:00:00]} 41. Rb5 {[%emt 0:17:01]} Ne6 {[%emt 0:08:26]} 42. Ra2 {[%emt 0:08:13]} Nd4 {[%emt 0:00:34]} 43. Re5 {[%emt 0:00:45]} Nec6 {[%emt 0:00:19]} 44. Re8+ {[%emt 0:03:08]} Kf7 {[%emt 0:00:01]} 45. Ra8 {[%emt 0:00:06]} Bb4 {[%emt 0:06:07]} 46. Nxf5 {[%emt 0:00:35]} a3 {[%emt 0:00:35]} 47. Rf2 {[%emt 0:01:50]} Nf3 {[%emt 0:04:10]} 48. Bg4 {[%emt 0:00:39]} Nce5 {[%emt 0:00:24]} 49. Nd4 {[%emt 0:00:36]} Nxg4 {[%emt 0:19:14]} 50. Nxb3 {[%emt 0:00:20]} Ne3+ {[%emt 0:00:09]} 51. Kh1 {[%emt 0:02:30]} Ng4 {[%emt 0:02:58]} 52. Re2 {[%emt 0:00:17]} e3 {[%emt 0:02:14]} 53. Ra4 {[%emt 0:00:57]} Bf8 {[%emt 0:02:27]} 54. c5 {[%emt 0:00:23]} Nfe5 {[%emt 0:01:42]} 55. Rxa3 {[%emt 0:00:33]} Ke6 {[%emt 0:00:33]} 56. Ra8 {[%emt 0:00:41]} Be7 {[%emt 0:00:06]} 57. Re8 {[%emt 0:00:54]} Kd7 {[%emt 0:00:36]} 58. Ra8 {[%emt 0:00:10]} Ke6 {[%emt 0:00:04]} 59. Nd4+ {[%emt 0:00:52]} Kd5 {[%emt 0:00:01]} 60. c6 {[%emt 0:00:26]} Bd6 {[%emt 0:00:48]} 61. Nf5 {[%emt 0:00:15]} Be7 {[%emt 0:43:50]} 1-0

[Event "BAN-chT Golden Jubilee 2021-22"]
[Site "Dhaka"]
[Date "2022.03.18"]
[Round "9.20"]
[White "Anata, Choudhury"]
[Black "Mihir Lal, Das"]
[Result "1-0"]
[ECO "B90"]
[WhiteElo "2170"]
[BlackElo "2006"]
[Annotator "NA"]
[PlyCount "83"]
[EventDate "2022.03.10"]
[EventType "team-tourn"]
[EventCountry "BAN"]
[SourceTitle "playchess.com"]
[Source "ChessBase"]
[SourceQuality "1"]
[TimeControl "40/5400+30:1800+30"]

1. e4 {[%emt 0:00:02]} c5 {[%emt 0:03:23]} 2. Nf3 {[%emt 0:00:22]} d6 {[%emt 0:00:02]} 3. d4 {[%emt 0:00:13]} cxd4 {[%emt 0:00:02]} 4. Nxd4 {[%emt 0:00:11]} Nf6 {[%emt 0:00:02]} 5. Nc3 {[%emt 0:00:13]} a6 {[%emt 0:00:03]} 6. h3 {[%emt 0:00:17]} b5 {[%emt 0:02:13]} 7. g4 {[%emt 0:00:26]} h6 {[%emt 0:03:55]} 8. Bg2 {[%emt 0:00:14]} Bb7 {[%emt 0:00:09]} 9. O-O {[%emt 0:00:41]} e6 {[%emt 0:02:38]} 10. Re1 {[%emt 0:06:18]} Qc7 {[%emt 0:05:13]} 11. f4 {[%emt 0:03:19]} Nc6 {[%emt 0:04:50]} 12. Nxc6 {[%emt 0:04:19]} Qxc6 {[%emt 0:01:34]} 13. a4 {[%emt 0:00:25]} b4 {[%emt 0:03:59]} 14. Nd5 {[%emt 0:00:24]} O-O-O {[%emt 0:02:10]} 15. Nxf6 {[%emt 0:07:52]} gxf6 {[%emt 0:00:04]} 16. Be3 {[%emt 0:00:10]} h5 {[%emt 0:12:19]} 17. c3 {[%emt 0:00:18]} b3 {[%emt 0:03:01]} 18. Qxb3 {[%emt 0:00:53]} hxg4 {[%emt 0:01:15]} 19. hxg4 {[%emt 0:00:22]} Rh4 {[%emt 0:05:24]} 20. Qb6 {[%emt 0:01:51]} Rxg4 {[%emt 0:02:03]} 21. Qxc6+ {[%emt 0:00:26]} Bxc6 {[%emt 0:00:02]} 22. Kf2 {[%emt 0:00:46]} Bh6 {[%emt 0:07:03]} 23. Bf3 {[%emt 0:01:23]} Rg6 {[%emt 0:02:27]} 24. c4 {[%emt 0:08:32]} Rdg8 {[%emt 0:04:20]} 25. Rh1 {[%emt 0:05:25]} e5 {[%emt 0:15:19]} 26. f5 {[%emt 0:02:11]} Bxe3+ {[%emt 0:01:47]} 27. Kxe3 {[%emt 0:02:03]} Rg3 {[%emt 0:01:14]} 28. Rh6 {[%emt 0:02:12]} Kd7 {[%emt 0:05:25]} 29. Rxf6 {[%emt 0:00:48]} Ke7 {[%emt 0:00:10]} 30. Rh6 {[%emt 0:00:30]} Rb8 {[%emt 0:00:39]} 31. Kf2 {[%emt 0:03:56]} Rgg8 {[%emt 0:00:04]} 32. Ra2 {[%emt 0:04:43]} Rb4 {[%emt 0:00:56]} 33. b3 {[%emt 0:03:20]} Rxb3 {[%emt 0:06:37]} 34. Rd2 {[%emt 0:00:40]} Bxa4 {[%emt 0:01:54]} 35. Rhxd6 {[%emt 0:00:36]} Ra8 {[%emt 0:04:56]} 36. f6+ {[%emt 0:01:29]} Ke8 {[%emt 0:00:16]} 37. R2d5 {[%emt 0:00:32]} Rc3 {[%emt 0:00:37]} 38. Rxe5+ {[%emt 0:00:17]} Kf8 {[%emt 0:00:01]} 39. Rh5 {[%emt 0:01:01]} Kg8 {[%emt 0:00:01]} 40. Rdd5 {[%emt 0:00:00]} Rxf3+ {[%emt 0:00:00]} 41. Kxf3 {[%emt 0:00:38]} Bd1+ {[%emt 0:02:47]} 42. Rxd1 {[%emt 0:00:23]} 1-0